bitfinex-derivatives/quotes_BTCF0:USTF0_20250822
["timestamp","ask_amount","ask_price","bid_price","bid_amount"]
[1755885961418,0.0004,117140.0,117130.0,1.75541277]
[1755885964520,0.0004,117140.0,117130.0,2.15645853]
[1755885965319,0.0004,117140.0,117130.0,2.20613129]
[1755885965518,0.64171,117160.0,117150.0,0.5110425]
[1755885965819,0.83858576,117170.0,117150.0,0.5110425]
[1755885965820,0.64171,117170.0,117160.0,0.5110352]
[1755885966021,1.04275576,117170.0,117160.0,0.5110352]
[1755885966224,0.5312,117170.0,117160.0,0.5110352]
[1755885966522,0.3608,117170.0,117160.0,0.5110352]
[1755885966820,0.3608,117170.0,117160.0,0.57221293]
[1755885967418,0.38647,117170.0,117160.0,0.57221293]
[1755885967618,0.43081,117170.0,117160.0,0.57221293]
[1755885967819,1.00898576,117170.0,117160.0,0.57221293]
[1755885968024,0.64818576,117170.0,117160.0,0.57221293]
[1755885968224,0.24714,117170.0,117160.0,0.5110352]
[1755885968419,0.64818576,117170.0,117160.0,0.5110352]
[1755885968625,0.65018576,117170.0,117160.0,0.5110352]
[1755885968827,0.65258576,117170.0,117160.0,0.5112352]
[1755885969220,0.47545576,117170.0,117160.0,0.5112352]
[1755885969727,0.43521,117170.0,117160.0,0.5112352]
[1755885969920,0.07441,117170.0,117160.0,0.5112352]
[1755885970120,0.0044,117170.0,117160.0,0.5112352]
[1755885970320,0.0044,117170.0,117160.0,0.57241293]
[1755885970523,0.10479,117170.0,117160.0,0.57241293]
[1755885970718,0.0044,117170.0,117160.0,0.57241293]
[1755885971124,0.0044,117170.0,117160.0,0.5112352]
[1755885973332,0.0044,117170.0,117160.0,0.93321293]
[1755885973731,0.0044,117170.0,117160.0,1.33425869]
[1755885973938,0.0044,117170.0,117160.0,0.93321293]
[1755885974138,0.13046,117170.0,117160.0,0.93321293]
[1755885974434,0.03007,117170.0,117160.0,0.93321293]
[1755885974826,0.0044,117170.0,117160.0,0.8720352]
[1755885975026,0.0044,117170.0,117160.0,1.1220352]
[1755885975328,0.0044,117170.0,117160.0,1.52308096]
[1755885978635,0.03007,117170.0,117160.0,1.52308096]
[1755885978829,0.0044,117170.0,117160.0,1.52308096]
[1755885980037,0.0044,117170.0,117160.0,1.1220352]
[1755885980225,0.0044,117170.0,117160.0,1.52308096]
[1755885981038,0.0024,117170.0,117160.0,1.52308096]
[1755885981427,0.0004,117170.0,117160.0,1.52308096]
[1755885982338,0.0004,117170.0,117160.0,1.1220352]
[1755885982539,0.12646,117170.0,117160.0,1.1220352]
[1755885982733,0.12646,117170.0,117160.0,1.9680752]
[1755885982734,0.75909576,117170.0,117160.0,1.9680752]
[1755885983039,0.35805,117170.0,117160.0,1.3572752]
[1755885983243,1.11989576,117170.0,117160.0,1.3572752]
[1755885984440,1.11989576,117170.0,117160.0,1.3585552]
[1755885985339,0.3608,117180.0,117160.0,1.3585552]
[1755885985545,0.40899,117190.0,117180.0,0.5110207]
[1755885985743,0.81003576,117190.0,117180.0,1.3572607]
[1755885986239,0.40899,117190.0,117180.0,1.3572607]
[1755885986440,0.81003576,117190.0,117180.0,1.3572607]
[1755885987336,0.26727,117190.0,117180.0,1.3572607]
[1755885987643,0.14473,117190.0,117180.0,1.3572607]
[1755885988343,0.31116,117190.0,117180.0,1.37937819]
[1755885988643,0.28344,117190.0,117180.0,1.37937819]
[1755885988837,0.28384,117190.0,117180.0,1.37957819]
[1755885989043,0.68488576,117190.0,117180.0,1.37957819]
[1755885989245,0.80582576,117190.0,117180.0,1.37957819]
[1755885989835,0.04474,117190.0,117180.0,1.37957819]
[1755885990139,0.0004,117190.0,117180.0,1.37957819]
[1755885990540,0.10103,117190.0,117180.0,1.37957819]
[1755885990743,0.23974,117190.0,117180.0,1.37957819]
[1755885991237,0.31367,117190.0,117180.0,1.37957819]
[1755885991432,0.40689,117190.0,117180.0,1.37957819]
[1755885991846,0.80793576,117190.0,117180.0,1.37957819]
[1755885994351,0.37864,117190.0,117180.0,1.37957819]
[1755885994542,0.14724,117190.0,117180.0,1.37957819]
[1755885995643,0.0004,117190.0,117180.0,1.74037819]
[1755885995840,0.10063,117210.0,117200.0,0.498026]
[1755885996142,0.62858,117220.0,117210.0,0.2030586]
[1755885996349,0.17456,117220.0,117210.0,0.89906436]
[1755885996546,0.31327,117220.0,117210.0,0.4980186]
[1755885996942,0.17456,117220.0,117210.0,0.4980186]
[1755885997146,0.3608,117230.0,117220.0,0.0853114]
[1755885997348,1.16833576,117240.0,117230.0,0.4980041]
[1755885998046,1.16833576,117240.0,117230.0,0.3550741]
[1755885998249,1.41833576,117240.0,117230.0,0.3155541]
[1755885998438,1.01729,117240.0,117230.0,0.2030441]
[1755885998643,1.42333576,117240.0,117230.0,0.2030441]
[1755885998843,1.42733576,117240.0,117230.0,0.2030441]
[1755885999052,1.42733576,117240.0,117230.0,0.1107941]
[1755885999345,1.42733576,117240.0,117230.0,0.1109942]
[1755885999346,1.42773576,117240.0,117230.0,0.1109942]
[1755885999653,1.42773576,117240.0,117230.0,0.2032442]
[1755886000543,1.42773576,117240.0,117230.0,0.0855042]
[1755886000739,1.91407852,117240.0,117230.0,0.86339051]
[1755886000949,1.9330822,117240.0,117230.0,0.86339051]
[1755886001150,1.91407852,117240.0,117230.0,0.86339051]
[1755886001451,1.84778143,117240.0,117230.0,0.94869481]
[1755886002158,1.82878152,117240.0,117230.0,0.94849481]
[1755886002351,1.42773576,117240.0,117230.0,1.06623481]
[1755886002545,1.42773576,117240.0,117230.0,1.31573481]
[1755886003455,1.42773576,117240.0,117230.0,1.17224481]
[1755886003756,1.82878152,117240.0,117230.0,1.13272481]
[1755886003961,1.82878152,117240.0,117230.0,1.06567481]
[1755886004151,1.17773576,117240.0,117230.0,1.31517481]
[1755886004454,1.17773576,117240.0,117230.0,1.35975481]
[1755886005253,1.42273576,117240.0,117230.0,1.35975481]
[1755886005456,1.42473576,117240.0,117230.0,1.35975481]
[1755886005650,1.42473576,117240.0,117230.0,1.11025481]
[1755886005849,1.42473576,117240.0,117230.0,1.06479481]
[1755886006355,1.42473576,117240.0,117230.0,1.13184481]
[1755886006561,1.42273576,117240.0,117230.0,1.13184481]
[1755886007057,1.02169,117240.0,117230.0,1.31429481]
[1755886007259,1.42073576,117240.0,117230.0,1.31429481]
[1755886007459,1.42273576,117240.0,117230.0,1.31429481]
[1755886007649,1.50803276,117240.0,117230.0,1.31429481]
[1755886007850,1.90907852,117240.0,117230.0,0.0002]
[1755886008154,0.4268388,117210.0,117200.0,0.18479]
[1755886008369,0.40649,117200.0,117190.0,1.06799]
[1755886008560,1.56938152,117200.0,117190.0,1.0467534]
[1755886008760,1.56938152,117200.0,117190.0,1.06541641]
[1755886008958,1.81938152,117200.0,117190.0,1.06541641]
[1755886009259,0.76729,117200.0,117190.0,1.31491641]
[1755886009557,0.93640576,117200.0,117190.0,1.31491641]
[1755886009754,0.46143,117200.0,117190.0,1.31491641]
[1755886009951,0.46143,117200.0,117190.0,1.31891641]
[1755886010559,0.46143,117200.0,117190.0,1.32091641]
[1755886010859,0.46143,117200.0,117190.0,1.38950246]
[1755886011060,0.60014,117200.0,117190.0,1.38750246]
[1755886011253,0.60054,117200.0,117190.0,1.38670246]
[1755886011645,0.0004,117200.0,117190.0,1.38670246]
[1755886012356,0.60054,117200.0,117190.0,1.38670246]
[1755886012550,0.73944,117200.0,117190.0,1.38670246]
[1755886012751,0.14724,117200.0,117190.0,1.38670246]
[1755886014657,1.23705228,117200.0,117190.0,1.43160226]
[1755886017160,1.23705228,117200.0,117190.0,0.58848226]
[1755886017658,1.23705228,117200.0,117190.0,1.43096226]
[1755886017859,1.79174046,117200.0,117190.0,0.44555226]
[1755886018164,1.57237818,117200.0,117190.0,1.24831226]
[1755886019263,1.57237818,117200.0,117190.0,1.43850226]
[1755886020356,0.2591132,117190.0,117180.0,0.01906784]
[1755886020557,0.3717677,117170.0,117160.0,0.3135415]
[1755886020860,1.68704998,117170.0,117150.0,0.34304484]
[1755886021064,1.24090228,117160.0,117150.0,1.3468791]
[1755886021262,1.32625728,117160.0,117150.0,0.5059191]
[1755886021462,1.57625728,117160.0,117150.0,0.09547357]
[1755886021763,1.57025728,117160.0,117150.0,0.17354613]
[1755886021959,1.48490228,117160.0,117150.0,0.17354613]
[1755886022160,1.48490228,117160.0,117150.0,0.36217613]
[1755886022363,1.48490228,117160.0,117150.0,0.55236613]
[1755886022566,1.48490228,117160.0,117150.0,0.59610613]
[1755886023065,1.48490228,117160.0,117150.0,0.59710613]
[1755886023766,1.48490228,117160.0,117150.0,0.59610613]
[1755886024065,1.48490228,117160.0,117150.0,0.59430613]
[1755886024066,1.48530228,117160.0,117150.0,0.59430613]
[1755886024266,1.48930228,117160.0,117150.0,0.59430613]
[1755886024862,1.57465728,117160.0,117150.0,0.59430613]
[1755886025360,0.76994,117160.0,117150.0,0.59430613]
[1755886025561,1.23930228,117160.0,117150.0,0.44367613]
[1755886025864,1.32465728,117160.0,117150.0,0.5061222]
[1755886026072,0.855295,117160.0,117150.0,0.5061222]
[1755886026259,1.32465728,117160.0,117150.0,0.5061222]
[1755886027069,1.32465728,117160.0,117150.0,1.36615389]
[1755886028265,1.23930228,117160.0,117150.0,1.36615389]
[1755886028458,0.3592,117160.0,117150.0,1.36615389]
[1755886029763,0.3652,117160.0,117150.0,1.36815389]
[1755886030664,0.46088,117160.0,117150.0,1.36815389]
[1755886031559,0.77194,117160.0,117150.0,0.52743389]
[1755886031764,0.77194,117160.0,117150.0,1.36583389]
[1755886031765,1.24130228,117160.0,117150.0,1.36583389]
[1755886032065,1.24130228,117160.0,117150.0,1.36783389]
[1755886032265,1.21448228,117160.0,117150.0,1.36783389]
[1755886032672,1.21448228,117160.0,117150.0,1.28247169]
[1755886032867,0.77194,117160.0,117150.0,1.21720389]
[1755886033068,1.24130228,117160.0,117150.0,1.28247169]
[1755886033268,1.32665728,117160.0,117150.0,1.28147169]
[1755886033468,1.32665728,117160.0,117150.0,0.44107169]
[1755886033670,1.57765728,117160.0,117150.0,0.0012]
[1755886034079,1.57765728,117160.0,117150.0,0.5071223]
[1755886034378,1.57765728,117160.0,117150.0,0.42176]
[1755886034677,1.49130228,117160.0,117150.0,0.5071223]
[1755886034876,1.49430228,117160.0,117150.0,0.5071223]
[1755886035273,1.49430228,117160.0,117150.0,0.2751923]
[1755886035576,1.49430228,117160.0,117150.0,0.4643823]
[1755886036275,1.49430228,117160.0,117150.0,0.2741923]
[1755886036479,1.49430228,117160.0,117150.0,0.4643823]
[1755886036668,1.49430228,117160.0,117150.0,0.5061223]
[1755886037678,1.49430228,117160.0,117150.0,1.3488023]
[1755886039177,1.24430228,117160.0,117150.0,1.3488023]
[1755886039481,1.14930228,117160.0,117150.0,1.3488023]
[1755886040174,1.21748228,117160.0,117150.0,1.3488023]
[1755886040482,1.24130228,117160.0,117150.0,1.3488023]
[1755886041483,1.24130228,117160.0,117150.0,1.3508023]
[1755886041676,0.3612,117160.0,117150.0,1.3508023]
[1755886041875,0.74512,117160.0,117150.0,1.3508023]
[1755886042080,1.24130228,117160.0,117150.0,0.5081223]
[1755886042280,1.24130228,117160.0,117150.0,1.3494023]
[1755886042778,1.24130228,117160.0,117150.0,1.3484023]
[1755886043180,1.24230228,117160.0,117150.0,1.3484423]
[1755886044072,1.32765718,117160.0,117150.0,1.3478022]
[1755886044580,1.32765718,117160.0,117150.0,1.3468022]
[1755886044784,1.32765718,117160.0,117150.0,1.3478022]
[1755886045084,1.34730254,117160.0,117150.0,1.3478022]
[1755886045280,1.34730254,117160.0,117150.0,1.07225]
[1755886045586,1.59730256,117160.0,117150.0,0.0855622]
[1755886045788,1.59730256,117160.0,117150.0,0.0002]
[1755886046189,1.59630256,117160.0,117150.0,0.0002]
[1755886046388,1.93193998,117160.0,117150.0,0.0002]
[1755886046886,2.77245998,117160.0,117150.0,0.0002]
[1755886047679,2.77245998,117160.0,117150.0,0.0855622]
[1755886047885,2.68710508,117160.0,117150.0,0.4934322]
[1755886048184,1.44558523,117160.0,117150.0,0.4934322]
[1755886048389,1.51440266,117160.0,117150.0,0.4934322]
[1755886048890,1.04458538,117160.0,117150.0,0.4934322]
[1755886049190,1.51440266,117160.0,117150.0,0.4934322]
[1755886049875,1.34975756,117160.0,117150.0,0.4934322]
[1755886050278,1.26440266,117160.0,117150.0,0.4934322]
[1755886050477,0.79458538,117160.0,117150.0,0.4934322]
[1755886050681,1.26440266,117160.0,117150.0,0.4934322]
[1755886050883,1.34975756,117160.0,117150.0,0.4934322]
[1755886051383,1.59975756,117160.0,117150.0,0.0002]
[1755886051587,2.06957484,117160.0,117150.0,0.0002]
[1755886051978,0.4836622,117150.0,117140.0,0.10412785]
[1755886052183,1.80374214,117150.0,117140.0,0.10412785]
[1755886053286,1.24856266,117150.0,117140.0,0.51199785]
[1755886053486,1.24956266,117150.0,117140.0,0.51199785]
[1755886053886,1.24956266,117150.0,117140.0,0.51299785]
[1755886054085,0.88876266,117150.0,117140.0,0.51299785]
[1755886054287,1.24956266,117150.0,117140.0,0.51299785]
[1755886054987,1.33492486,117150.0,117140.0,0.51299785]
[1755886055188,1.33532486,117150.0,117140.0,0.51319785]
[1755886055987,1.24996266,117150.0,117140.0,0.51319785]
[1755886056587,0.78014538,117150.0,117140.0,0.51319785]
[1755886056788,1.24996266,117150.0,117140.0,0.51319785]
[1755886056984,1.15922266,117150.0,117140.0,0.76319785]
[1755886057191,0.54256538,117150.0,117140.0,0.76319785]
[1755886057689,1.24996266,117150.0,117140.0,0.76319785]
[1755886057989,1.33532486,117150.0,117140.0,0.14329935]
[1755886058196,2.64562214,117150.0,117140.0,0.01995935]
[1755886058492,1.70598758,117150.0,117140.0,0.01995935]
[1755886058696,2.17580486,117150.0,117140.0,0.01995935]
[1755886058882,2.89562214,117150.0,117140.0,0.0012]
[1755886059081,0.4836769,117130.0,117120.0,1.03028]
[1755886059285,1.69473956,117130.0,117120.0,0.96382]
[1755886059584,1.69473956,117130.0,117110.0,1.18511005]
[1755886059791,1.22891728,117120.0,117110.0,1.20172213]
[1755886060296,0.7591,117120.0,117110.0,1.26887266]
[1755886060592,1.22891728,117120.0,117110.0,1.26887266]
[1755886061181,1.22891728,117120.0,117110.0,1.27187266]
[1755886061592,1.22891728,117120.0,117110.0,1.27387266]
[1755886069807,0.45154,117130.0,117120.0,0.0853843]
[1755886070007,1.22891728,117130.0,117120.0,0.4932543]
[1755886070207,1.22931728,117130.0,117120.0,0.4934543]
[1755886070403,1.16057573,117130.0,117120.0,0.4934543]
[1755886070603,0.5872,117130.0,117120.0,0.7434543]
[1755886070815,0.4516,117130.0,117120.0,0.7434543]
[1755886071008,0.85267573,117130.0,117120.0,0.7454543]
[1755886071208,0.4516,117130.0,117120.0,0.7454543]
[1755886071715,0.0004,117130.0,117120.0,1.50833003]
[1755886072209,0.0004,117130.0,117120.0,1.56950776]
[1755886072402,0.0004,117130.0,117120.0,1.16843203]
[1755886073112,0.23764,117130.0,117120.0,0.7464543]
[1755886073314,0.79977573,117130.0,117120.0,0.7464543]
[1755886073508,0.79977573,117130.0,117120.0,0.4964543]
[1755886074313,0.04412,117130.0,117120.0,0.4964543]
[1755886074508,0.0004,117130.0,117120.0,0.91843203]
[1755886074710,0.0004,117130.0,117120.0,1.16843203]
[1755886075211,0.0004,117130.0,117120.0,1.56950776]
[1755886076519,0.0004,117130.0,117120.0,1.60279776]
[1755886076716,0.0004,117130.0,117120.0,1.20172203]
[1755886079117,0.09405,117130.0,117120.0,1.20172203]
[1755886079818,0.0004,117130.0,117120.0,1.20172203]
[1755886081406,0.62753573,117130.0,117120.0,1.20172203]
[1755886081614,0.78084573,117130.0,117120.0,1.43100203]
[1755886081916,1.14164573,117130.0,117120.0,1.3698243]
[1755886083005,1.14164573,117130.0,117120.0,1.2311343]
[1755886083221,1.47702273,117130.0,117120.0,0.99991]
[1755886085410,1.22702273,117130.0,117120.0,0.99991]
[1755886085615,1.14164573,117130.0,117120.0,1.2881542]
[1755886085822,0.74057,117130.0,117120.0,1.3239442]
[1755886086022,1.14164573,117130.0,117120.0,1.3239442]
[1755886087528,1.05366573,117130.0,117120.0,1.3239442]
[1755886088223,0.92125573,117130.0,117120.0,1.3239442]
[1755886088624,1.05366573,117130.0,117120.0,1.3239442]
[1755886089814,0.69286573,117130.0,117120.0,1.3239442]
[1755886090325,1.05366573,117130.0,117120.0,1.3239442]
[1755886090525,0.0004,117130.0,117120.0,1.72501993]
[1755886090720,0.0004,117130.0,117120.0,2.14699766]
[1755886091129,0.0004,117130.0,117120.0,1.78619766]
[1755886091424,0.0004,117130.0,117120.0,2.14699766]
[1755886091626,0.0004,117130.0,117120.0,2.39699766]
[1755886091925,0.22646,117130.0,117120.0,1.63512193]
[1755886092726,0.62753573,117130.0,117120.0,1.63512193]
[1755886093026,0.66820573,117130.0,117120.0,1.63512193]
[1755886093221,0.69286573,117130.0,117120.0,1.67520193]
[1755886093424,0.75675573,117130.0,117120.0,1.67520193]
[1755886093829,0.04107,117130.0,117120.0,1.67520193]
[1755886094227,0.13472,117130.0,117120.0,0.83524193]
[1755886094426,0.13472,117130.0,117120.0,1.67520193]
[1755886094628,0.0004,117130.0,117120.0,1.67520193]
[1755886095231,0.0004,117130.0,117120.0,2.03600193]
[1755886099025,1.00116908,117140.0,117130.0,0.0853769]
[1755886099026,0.01890335,117140.0,117130.0,0.0853769]
[1755886099220,0.01890335,117140.0,117130.0,1.24126263]
[1755886099425,0.01890335,117140.0,117130.0,0.90136463]
[1755886099625,0.01890335,117140.0,117130.0,1.30244036]
[1755886100633,0.01890335,117140.0,117130.0,1.30344036]
[1755886101328,0.01890335,117140.0,117130.0,1.49226263]
[1755886101529,0.54427,117170.0,117160.0,0.479365]
[1755886101730,0.49512,117170.0,117160.0,1.72008073]
[1755886101928,0.98410573,117180.0,117170.0,0.0853478]
[1755886102134,0.45445,117180.0,117170.0,0.88043353]
[1755886102334,0.45485,117180.0,117170.0,0.4795578]
[1755886102534,0.3612,117180.0,117170.0,0.4795578]
[1755886102833,0.58726,117180.0,117170.0,0.49633981]
[1755886103038,0.65259,117180.0,117170.0,0.52962981]
[1755886103231,0.67708,117180.0,117170.0,0.52962981]
[1755886103628,0.3612,117180.0,117170.0,0.52962981]
[1755886104029,0.3662,117180.0,117170.0,0.52962981]
[1755886104434,0.45985,117180.0,117170.0,0.52962981]
[1755886104736,0.46285,117180.0,117170.0,0.52962981]
[1755886104925,0.45785,117180.0,117170.0,0.52962981]
[1755886105325,0.0004,117180.0,117170.0,0.59750699]
[1755886105524,0.0004,117180.0,117170.0,0.84750699]
[1755886105730,0.0004,117180.0,117170.0,1.67782022]
[1755886106032,0.38011064,117190.0,117180.0,0.4793506]
[1755886106229,0.38011064,117190.0,117180.0,2.03830383]
[1755886106424,0.7399,117210.0,117200.0,0.2406861]
[1755886106636,0.7399,117210.0,117200.0,1.3187361]
[1755886107737,0.45845,117210.0,117200.0,1.3187361]
[1755886107936,0.3648,117210.0,117200.0,1.3187361]
[1755886108137,0.46008,117210.0,117200.0,1.3187361]
[1755886108833,0.60136,117210.0,117200.0,1.3187361]
[1755886109826,0.75783,117210.0,117200.0,1.3185761]
[1755886110035,0.75823,117210.0,117200.0,1.3187761]
[1755886110737,1.22774323,117210.0,117200.0,1.3187761]
[1755886111430,0.50351,117210.0,117200.0,1.3187761]
[1755886111830,0.0064,117210.0,117200.0,1.3187761]
[1755886112134,0.0064,117210.0,117200.0,1.5687761]
[1755886112435,0.0064,117210.0,117200.0,2.03828933]
[1755886112636,0.3608,117220.0,117210.0,0.2376886]
[1755886112844,0.09328,117220.0,117210.0,0.4810186]
[1755886113130,0.83685323,117230.0,117220.0,0.4810115]
[1755886113334,0.83685323,117230.0,117220.0,1.3198915]
[1755886113529,1.19765323,117230.0,117220.0,1.3198915]
[1755886113729,1.22774323,117230.0,117220.0,1.3198915]
[1755886114128,0.26049,117240.0,117230.0,0.4809993]
[1755886114327,0.86694323,117240.0,117230.0,0.25435]
[1755886114537,1.22774323,117240.0,117230.0,1.3198042]
[1755886114833,0.80312323,117240.0,117230.0,1.3198042]
[1755886115028,0.69441,117240.0,117230.0,1.3198042]
[1755886115224,0.75823,117240.0,117230.0,1.3198042]
[1755886115532,0.75823,117240.0,117230.0,1.3197642]
[1755886115737,0.66832,117240.0,117230.0,1.3197642]
[1755886116034,0.52744,117240.0,117230.0,1.3199642]
[1755886116230,0.52744,117240.0,117230.0,1.33519024]
[1755886116430,0.50551,117240.0,117230.0,1.33519024]
[1755886116829,0.46248,117240.0,117230.0,1.33519024]
[1755886117337,0.24296,117240.0,117230.0,1.33519024]
[1755886117535,0.60376,117240.0,117230.0,1.33519024]
[1755886117741,0.76663,117240.0,117230.0,1.33519024]
[1755886118732,1.23614323,117240.0,117230.0,1.33519024]
[1755886119332,1.23614323,117240.0,117230.0,1.40481746]
[1755886119729,1.31744033,117240.0,117230.0,0.56605756]
[1755886119936,1.23314323,117240.0,117230.0,1.40457756]
[1755886120133,0.76363,117240.0,117230.0,1.40457756]
[1755886120727,0.75963,117240.0,117230.0,1.40457756]
[1755886120931,1.22914323,117240.0,117230.0,1.40457756]
[1755886121438,1.16532323,117240.0,117230.0,1.40457756]
[1755886121942,0.69581,117240.0,117230.0,1.40457756]
[1755886122739,0.27899,117240.0,117230.0,1.40457756]
[1755886122941,0.0014,117240.0,117230.0,2.48489079]
[1755886123627,0.0014,117240.0,117230.0,2.01537756]
[1755886124042,0.0014,117240.0,117230.0,2.01501756]
[1755886124336,0.0192555,117260.0,117250.0,0.4809897]
[1755886124537,0.3800555,117260.0,117250.0,1.3191097]
[1755886125138,0.3800555,117260.0,117250.0,1.78862293]
[1755886125139,0.0192555,117260.0,117250.0,1.78862293]
[1755886125334,0.0192555,117260.0,117250.0,1.3191097]
[1755886126138,0.0222555,117260.0,117250.0,1.3191097]
[1755886126840,0.0242555,117260.0,117250.0,1.3191097]
[1755886127347,0.0242555,117260.0,117250.0,2.14942293]
[1755886127646,0.0246555,117260.0,117250.0,1.9301097]
[1755886128343,0.0054,117260.0,117250.0,1.9301097]
[1755886128644,0.0054,117260.0,117250.0,0.8419897]
[1755886128845,0.0054,117260.0,117250.0,1.6797497]
[1755886129047,0.23996,117260.0,117250.0,1.6797497]
[1755886129245,0.0054,117260.0,117250.0,1.6797497]
[1755886129448,0.0054,117260.0,117250.0,1.9297497]
[1755886129745,0.0054,117260.0,117250.0,2.39926293]
[1755886131348,0.0054,117260.0,117250.0,1.9297497]
[1755886132043,0.09868,117260.0,117250.0,1.9297497]
[1755886132243,0.0054,117260.0,117250.0,1.9297497]
[1755886132443,0.0054,117260.0,117250.0,2.32981668]
[1755886132643,0.0024,117260.0,117250.0,2.32981668]
[1755886132839,0.26289,117260.0,117250.0,1.6795097]
[1755886133041,0.33601,117260.0,117250.0,1.6795097]
[1755886133244,0.33401,117260.0,117250.0,1.6795097]
[1755886133544,0.09368,117260.0,117250.0,1.6795097]
[1755886133940,0.09368,117260.0,117250.0,1.6794697]
[1755886134451,0.09368,117260.0,117250.0,1.7127397]
[1755886135438,0.0004,117260.0,117250.0,1.7127397]
[1755886135746,0.0004,117260.0,117250.0,2.11280668]
[1755886136949,0.0004,117260.0,117250.0,1.7127397]
[1755886137754,0.0004,117260.0,117250.0,1.7533097]
[1755886138650,0.0004,117260.0,117250.0,2.15337668]
[1755886139048,0.0004,117260.0,117250.0,1.7533097]
[1755886139251,0.0004,117260.0,117250.0,2.15337668]
[1755886140150,0.0004,117260.0,117250.0,1.8232397]
[1755886140345,0.0004,117260.0,117250.0,2.22330668]
[1755886140550,0.0004,117260.0,117250.0,1.38582668]
[1755886140752,0.0004,117260.0,117250.0,1.8227997]
[1755886141052,0.22067,117260.0,117250.0,1.8227997]
[1755886141253,0.28478,117260.0,117250.0,2.22286668]
[1755886141754,0.26104,117260.0,117250.0,1.8227997]
[1755886141949,0.0892,117260.0,117250.0,2.22286668]
[1755886142152,0.22067,117260.0,117250.0,1.8227597]
[1755886142354,0.24441,117260.0,117250.0,1.8227597]
[1755886142748,0.55337698,117260.0,117250.0,0.9857597]
[1755886143044,0.77567698,117260.0,117250.0,1.4618397]
[1755886143453,0.37561,117260.0,117250.0,1.4618397]
[1755886143654,0.77567698,117260.0,117250.0,1.4618397]
[1755886144654,0.77567698,117260.0,117250.0,0.6249597]
[1755886144856,0.37561,117260.0,117250.0,1.4617597]
[1755886145159,0.37561,117260.0,117250.0,1.4494697]
[1755886145160,1.38647698,117260.0,117250.0,1.4494697]
[1755886145345,0.73641,117260.0,117250.0,1.4494697]
[1755886145544,1.13647698,117260.0,117250.0,1.4494697]
[1755886145955,0.77567698,117260.0,117250.0,1.4494697]
[1755886146352,0.77567698,117260.0,117250.0,1.8102697]
[1755886146655,0.0004,117260.0,117250.0,2.21033668]
[1755886147244,0.0004,117260.0,117250.0,1.8102697]
[1755886147456,0.24441,117260.0,117250.0,1.4494697]
[1755886147658,0.28478,117260.0,117250.0,0.6127097]
[1755886148461,0.77567698,117260.0,117250.0,1.4492697]
[1755886151362,0.15331,117260.0,117250.0,0.6127097]
[1755886151566,0.0004,117260.0,117250.0,0.6127097]
[1755886151859,0.0004,117260.0,117250.0,1.4491097]
[1755886151860,0.0892,117260.0,117250.0,1.4491097]
[1755886152056,0.0892,117260.0,117250.0,1.4490697]
[1755886152260,0.23980631,117260.0,117250.0,1.4490697]
[1755886152661,0.10833631,117260.0,117250.0,1.4490697]
[1755886152967,0.24441,117260.0,117250.0,1.4490697]
[1755886153459,0.0004,117260.0,117250.0,1.01277668]
[1755886153666,0.0004,117260.0,117250.0,1.4490297]
[1755886153867,0.0004,117260.0,117250.0,1.84909668]
[1755886154063,0.0004,117260.0,117250.0,2.20989668]
[1755886154566,2.48356698,117290.0,117280.0,0.4604479]
[1755886154768,2.50267114,117290.0,117280.0,1.2966879]
[1755886154957,2.10260416,117290.0,117280.0,1.2966879]
[1755886155365,2.50267114,117290.0,117280.0,1.2966879]
[1755886155669,2.50667114,117290.0,117280.0,1.2966879]
[1755886155864,2.50967114,117290.0,117280.0,1.2966879]
[1755886156266,2.22813416,117290.0,117280.0,1.2966879]
[1755886156469,2.35960416,117290.0,117280.0,1.2966879]
[1755886156667,2.75967114,117290.0,117280.0,1.2966879]
[1755886157558,2.35960416,117290.0,117280.0,1.2966879]
[1755886157761,2.76007114,117290.0,117280.0,1.3301579]
[1755886158658,2.76007114,117290.0,117280.0,0.3648179]
[1755886158859,2.76007114,117290.0,117280.0,1.1650579]
[1755886159066,2.76007114,117290.0,117280.0,0.4939179]
[1755886159258,2.76007114,117290.0,117280.0,1.3298779]
[1755886159554,2.76007114,117290.0,117280.0,1.3449502]
[1755886160960,2.74096698,117290.0,117280.0,1.3449502]
[1755886161370,2.82622768,117290.0,117280.0,1.3449502]
[1755886161760,2.82622768,117290.0,117280.0,1.1800902]
[1755886162075,2.84477764,117290.0,117280.0,1.1800902]
[1755886162565,2.84477689,117290.0,117280.0,0.3441302]
[1755886162967,2.84477689,117290.0,117280.0,1.3089502]
[1755886163368,2.82622768,117290.0,117280.0,1.3089502]
[1755886163564,2.82622768,117290.0,117280.0,0.1338102]
[1755886163768,2.84477675,117290.0,117280.0,0.0485423]
[1755886163962,2.84477675,117290.0,117280.0,0.8842223]
[1755886164162,2.84477675,117290.0,117280.0,0.0485423]
[1755886164363,2.84477675,117290.0,117280.0,0.03347]
[1755886164663,2.84477675,117290.0,117280.0,0.13364851]
[1755886165872,2.84477675,117290.0,117280.0,0.03347]
[1755886167269,0.238598,117280.0,117270.0,0.93797379]
[1755886167565,0.84304707,117280.0,117270.0,1.04887379]
[1755886167770,1.24311405,117280.0,117270.0,1.27646379]
[1755886168464,1.24511405,117280.0,117270.0,1.27646379]
[1755886168966,1.24811405,117280.0,117270.0,1.10994379]
[1755886169357,1.24811405,117280.0,117270.0,0.228642]
[1755886169563,0.0852752,117270.0,117260.0,0.0852781]
[1755886169759,1.24450125,117270.0,117260.0,0.9205981]
[1755886169972,1.24450125,117270.0,117260.0,1.0314981]
[1755886170167,0.84443427,117270.0,117260.0,1.1272881]
[1755886170374,0.75915907,117270.0,117260.0,1.2590881]
[1755886170565,1.15962605,117270.0,117260.0,1.2592881]
[1755886170871,1.15962605,117270.0,117260.0,1.27429598]
[1755886171171,0.67066907,117270.0,117260.0,1.27429598]
[1755886171470,0.3622,117270.0,117260.0,1.67436296]
[1755886171664,0.0014,117270.0,117260.0,2.03516296]
[1755886171864,0.0034,117270.0,117260.0,2.03516296]
[1755886172366,0.0034,117270.0,117260.0,2.07575296]
[1755886172762,0.0034,117270.0,117260.0,2.38677257]
[1755886175274,0.11769,117270.0,117260.0,0.57889559]
[1755886175470,0.32119,117270.0,117260.0,1.77477559]
[1755886175671,0.72125698,117270.0,117260.0,1.41397559]
[1755886175876,1.14407698,117270.0,117260.0,1.35287598]
[1755886176772,0.78327698,117270.0,117260.0,1.35287598]
[1755886176974,1.14407698,117270.0,117260.0,1.35287598]
[1755886177676,0.55817698,117270.0,117260.0,1.35287598]
[1755886177877,0.13304,117270.0,117260.0,1.35287598]
[1755886178078,0.0034,117270.0,117260.0,1.35287598]
[1755886178871,0.45342,117270.0,117260.0,1.35287598]
[1755886179073,1.10365698,117270.0,117260.0,1.35287598]
[1755886180078,1.14407698,117270.0,117260.0,1.35287598]